fUSD/lending_fUSD_20260427
["ID","MTS","AMOUNT","RATE_DAILY","PERIOD"]
[421189992,1777225868119,-1027.78733534,0.000329,120]
[421189993,1777225868129,-1836.10279011,0.000329,120]
[421189994,1777225868138,-191.67297374,0.000329,120]
[421189995,1777225868148,-868.5754963,0.000329,120]
[421189996,1777225868159,-1208.3276835,0.000329,120]
[421189997,1777225868169,-1061.35600253,0.000329,120]
[421189998,1777225868179,-171.99254843,0.000329,120]
[421189999,1777225868189,-841.34726371,0.000329,120]
[421190000,1777225868199,-706.94505282,0.000329,120]
[421190001,1777225868208,-575.47289118,0.000329,120]
[421190002,1777225868218,-809.22864547,0.000329,120]
[421190003,1777225868227,-1940.81596288,0.000329,120]
[421190004,1777225868236,-1763.80637438,0.000329,120]
[421190005,1777225868246,-1390.44371991,0.000329,120]
[421190006,1777225868255,-370.436004,0.000329,120]
[421190007,1777225868265,-150.0,0.000329,30]
[421190008,1777225868275,-400.22,0.000329,2]
[421190009,1777225868284,-500.0,0.000329,30]
[421190010,1777225868294,-500.0,0.000329,30]
[421190011,1777225868303,-500.0,0.000329,30]
[421190012,1777225868312,-502.82231483,0.000329,30]
[421190013,1777225868321,-469.3,0.00032933,30]
[421190014,1777225868330,-12416.54962031,0.00032997,2]
[421190015,1777225868340,-208.00786861,0.00033,30]
[421190016,1777225868349,-3101.91517997,0.00033,120]
[421190017,1777225868358,-805.86263637,0.00033,120]
[421190018,1777225868368,-1000.0,0.00033,120]
[421190019,1777225868377,-700.0,0.00033,120]
[421190020,1777225868386,-158.0,0.00033,2]
[421190021,1777225868397,-569.051577,0.00033,14]
[421190022,1777225868406,-1226.14,0.00033,30]
[421190023,1777225868415,-2364.72,0.00033,30]
[421190024,1777225868425,-1000.0,0.0003306,2]
[421190025,1777225868434,-1000.0,0.0003306,2]
[421190026,1777225868443,-1000.0,0.0003306,2]
[421190027,1777225868453,-1000.0,0.0003306,2]
[421190028,1777225868462,-1000.0,0.0003306,2]
[421190029,1777225868471,-1000.0,0.00033065,2]
[421190030,1777225868480,-1000.0,0.00033065,2]
[421190031,1777225868489,-1000.0,0.00033065,2]
[421190032,1777225868499,-1000.0,0.00033065,2]
[421190033,1777225868508,-1000.0,0.00033065,2]
[421190034,1777225868517,-4072.5,0.00033124,5]
[421190035,1777225868527,-1282.0,0.00033151,30]
[421190036,1777225868536,-3000.0,0.00033159,21]
[421190037,1777225868546,-200.0,0.00033199,2]
[421190038,1777225868558,-200.0,0.00033199,2]
[421190039,1777225868567,-200.0,0.00033205,2]
[421190040,1777225868576,-200.0,0.00033205,2]
[421190041,1777225868585,-469.31,0.00033216,30]
[421190042,1777225868594,-500.0,0.00033231,120]
[421190043,1777225868603,-2000.0,0.00033231,120]
[421190044,1777225868612,-500.0,0.00033231,120]
[421190045,1777225868621,-500.0,0.00033231,120]
[421190046,1777225868630,-504.0,0.00033275,5]
[421190047,1777225868639,-2000.0,0.000334,120]
[421190048,1777225868649,-1282.0,0.00033425,30]
[421190049,1777225868658,-270.53535558,0.00033425,5]
[421190050,1777225868667,-9348.0,0.00033428,120]
[421190051,1777225868676,-1689.0,0.00033428,120]
[421190052,1777225868685,-311.0,0.00033428,120]
[421190053,1777225868694,-612.77448273,0.00033493,15]
[421190054,1777225868703,-408.0,0.00033493,30]
[421190055,1777225868712,-580.0,0.00033493,30]
[421190056,1777225868721,-613.0,0.00033493,30]
[421190057,1777225868730,-200.0,0.00033493,30]
[421190058,1777225868740,-202.0,0.00033494,30]
[421190059,1777225868749,-836.0,0.00033494,30]
[421190060,1777225868758,-309.0,0.00033494,30]
[421190061,1777225868767,-294.0,0.00033494,30]
[421190062,1777225868776,-351.0,0.00033494,30]
[421190063,1777225868786,-1226.22320417,0.000335,2]
[421190064,1777225868795,-570.0,0.00033531,30]
[421190065,1777225868803,-200.0,0.00033531,2]
[421190066,1777225868814,-200.0,0.00033531,2]
[421190067,1777225868823,-200.0,0.00033537,2]
[421190068,1777225868832,-200.0,0.00033537,2]
[421190069,1777225868841,-222.88,0.0003359,69]
[421190070,1777225868850,-175.5002737,0.00033647,96]
[421190071,1777225868860,-2026.4,0.00033684,15]
[421190072,1777225868869,-1282.0,0.00033699,30]
[421190073,1777225868878,-500.0,0.00033707,21]
[421190074,1777225868887,-396.0,0.00033777,30]
[421190075,1777225868896,-6405.09273604,0.00033809,2]
[421190076,1777225868905,-150.0,0.0003383,2]
[421190077,1777225868915,-200.0,0.00033866,2]
[421190078,1777225868924,-200.0,0.00033872,2]
[421190079,1777225868933,-200.0,0.00033872,2]
[421190080,1777225868943,-536.18,0.00033899,15]
[421190081,1777225868952,-500.42,0.00033899,15]
[421190082,1777225868961,-1836.10279011,0.000339,120]
[421190083,1777225868971,-191.67297374,0.000339,120]
[421190084,1777225868979,-868.5754963,0.000339,120]
[421190085,1777225868988,-1208.3276835,0.000339,120]
[421190086,1777225868997,-1061.35600253,0.000339,120]
[421190087,1777225869007,-171.99254843,0.000339,120]
[421190088,1777225869017,-841.34726371,0.000339,120]
[421190089,1777225869027,-706.94505282,0.000339,120]
[421190090,1777225869036,-575.47289118,0.000339,120]
[421190091,1777225869045,-809.22864547,0.000339,120]
[421190092,1777225869054,-1940.81596288,0.000339,120]
[421190093,1777225869064,-1763.80637438,0.000339,120]
[421190094,1777225869074,-1390.44371991,0.000339,120]
[421190095,1777225869084,-214.10672339,0.0003393,2]
[421190096,1777225869093,-162.0,0.00033939,11]
[421190097,1777225869103,-152.0,0.00033964,10]
[421190098,1777225869112,-3000.0,0.00033981,21]
[421190099,1777225869123,-2800.0,0.00033981,21]
[421190100,1777225869133,-500.0,0.00033999,15]
[421190101,1777225869142,-626.08,0.00033999,15]
[421190102,1777225869151,-500.0,0.00033999,7]
[421190103,1777225869161,-1476.72,0.00033999,15]
[421190104,1777225869170,-776.82,0.00033999,15]
[421190105,1777225869179,-590.96220366,0.00033999,15]
[421190106,1777225869318,-500.0,0.00033999,2]
[421190107,1777225869328,-648.72,0.00033999,15]
[421190108,1777225869337,-457.33336335,0.00033999,120]
[421190109,1777225869347,-535.54,0.00033999,7]
[421190110,1777225869357,-587.8,0.00033999,15]
[421190111,1777225869366,-847.22,0.00033999,15]
[421190112,1777225869375,-1249.43,0.00033999,15]
[421190113,1777225869385,-773.2,0.00033999,7]
[421190114,1777225869395,-500.0,0.00033999,15]
[421190115,1777225869404,-624.43,0.00033999,15]
[421190116,1777225869414,-1806.22570903,0.00034,120]
[421190117,1777225869423,-500.0,0.00034,120]
[421190118,1777225869432,-2000.0,0.00034,34]
[421190119,1777225869441,-36860.06621668,0.00034,2]
[421190120,1777225869451,-7979.43,0.00034,14]
[421190121,1777225869460,-396.0,0.00034,30]
[421190122,1777225869469,-1013.03,0.00034,90]
[421190123,1777225869479,-771.14,0.00034,90]
[421190124,1777225869488,-162.0,0.00034005,11]
[421190125,1777225869497,-1577.0,0.00034005,11]
[421190126,1777225869507,-396.0,0.00034051,30]
[421190127,1777225869516,-504.0,0.00034124,6]
[421190128,1777225869525,-200.0,0.00034205,2]
[421190129,1777225869535,-200.0,0.00034211,2]
[421190130,1777225869545,-804.17102365,0.00034251,2]
[421190131,1777225869555,-22902.70754946,0.00034317,2]
[421190132,1777225869564,-5736.77307276,0.00034324,2]
[421190133,1777225869573,-396.0,0.00034325,30]
[421190134,1777225869583,-2535.92,0.00034326,30]
[421190135,1777225869592,-692.55,0.00034326,30]
[421190136,1777225869602,-1413.15,0.00034326,30]
[421190137,1777225869611,-643.35,0.00034326,30]
[421190138,1777225869620,-250.0,0.0003439,7]
[421190139,1777225869629,-250.0,0.0003439,7]
[421190140,1777225869639,-250.0,0.0003439,7]
[421190141,1777225869648,-250.0,0.0003439,7]
[421190142,1777225869658,-250.0,0.0003439,7]
[421190143,1777225869668,-151.64813378,0.00034411,30]
[421190144,1777225869677,-1752.45987277,0.0003449,2]
[421190145,1777225869687,-433.0,0.0003449,10]
[421190146,1777225869696,-408.0,0.00034493,30]
[421190147,1777225869705,-580.0,0.00034493,30]
[421190148,1777225869715,-613.0,0.00034493,30]
[421190149,1777225869724,-200.0,0.00034493,30]
[421190150,1777225869734,-202.0,0.00034494,30]
[421190151,1777225869743,-836.0,0.00034494,30]
[421190152,1777225869753,-309.0,0.00034494,30]
[421190153,1777225869762,-294.0,0.00034494,30]
[421190154,1777225869772,-351.0,0.00034494,30]
[421190155,1777225869781,-780.13987829,0.000345,120]
[421190156,1777225869791,-222.88,0.000345,98]
[421190157,1777225869801,-13658.7253,0.00034521,2]
[421190158,1777225869811,-570.0,0.00034531,30]
[421190159,1777225869821,-5000.0,0.00034552,15]
[421190160,1777225869830,-396.0,0.00034599,30]
[421190161,1777225869840,-1163.0,0.00034645,11]
[421190162,1777225869850,-5827.84,0.00034692,2]
[421190163,1777225869860,-162.0,0.00034697,11]
[421190164,1777225869869,-500.0,0.00034742,30]
[421190165,1777225869879,-1500.0,0.00034795,2]
[421190166,1777225869889,-3000.0,0.00034803,21]
[421190167,1777225869898,-500.0,0.00034833,15]
[421190168,1777225869908,-626.08,0.00034833,15]
[421190169,1777225869918,-500.0,0.00034833,7]
[421190170,1777225869927,-1476.72,0.00034833,15]
[421190171,1777225869937,-776.82,0.00034833,15]
[421190172,1777225869946,-500.0,0.00034833,2]
[421190173,1777225869955,-648.72,0.00034833,15]
[421190174,1777225869965,-2026.4,0.00034833,15]
[421190175,1777225869975,-535.54,0.00034833,7]
[421190176,1777225869984,-587.8,0.00034833,15]
[421190177,1777225869994,-847.22,0.00034833,15]
[421190178,1777225870004,-1249.43,0.00034833,15]
[421190179,1777225870014,-773.2,0.00034833,7]
[421190180,1777225870023,-500.0,0.00034833,15]
[421190181,1777225870033,-624.43,0.00034833,15]
[421190182,1777225870042,-536.18,0.00034833,15]
[421190183,1777225870051,-500.42,0.00034833,15]
[421190184,1777225870061,-34755.60742443,0.00034834,7]
[421190185,1777225870070,-72586.13193776,0.00034834,7]
[421190186,1777225870080,-246.20615306,0.0003485,120]
[421190187,1777225870089,-500.0,0.00034879,15]
[421190188,1777225870098,-626.08,0.00034879,15]
[421190189,1777225870108,-500.0,0.00034879,7]
[421190190,1777225870117,-1476.72,0.00034879,15]
[421190191,1777225870127,-776.82,0.00034879,15]
[421190192,1777225870136,-500.0,0.00034879,2]
[421190193,1777225870145,-648.72,0.00034879,15]
[421190194,1777225870155,-535.54,0.00034879,7]
[421190195,1777225870164,-587.8,0.00034879,15]
[421190196,1777225870174,-847.22,0.00034879,15]
[421190197,1777225870183,-1249.43,0.00034879,15]
[421190198,1777225870192,-773.2,0.00034879,7]
[421190199,1777225870202,-500.0,0.00034879,15]
[421190200,1777225870212,-624.43,0.00034879,15]
[421190201,1777225870222,-536.18,0.00034879,15]
[421190202,1777225870231,-536.18,0.00034879,15]
[421190203,1777225870241,-536.18,0.00034879,15]
[421190204,1777225870251,-536.18,0.00034879,15]
[421190205,1777225870260,-536.34,0.00034879,15]
[421190206,1777225870269,-500.42,0.00034879,15]
[421190207,1777225870279,-500.42,0.00034879,15]
[421190208,1777225870289,-500.42,0.00034879,15]
[421190209,1777225870298,-500.42,0.00034879,15]
[421190210,1777225870308,-500.62779463,0.00034879,15]
[421190211,1777225870317,-207269.19007257,0.0003488,120]
[421190212,1777225870328,-208.0,0.0003488,30]
[421190213,1777225870338,-2026.4,0.00034899,15]
[421190214,1777225870347,-162.0,0.00034899,11]
[421190215,1777225870357,-1836.10279011,0.000349,120]
[421190216,1777225870366,-191.67297374,0.000349,120]
[421190217,1777225870375,-868.5754963,0.000349,120]
[421190218,1777225870385,-1208.3276835,0.000349,120]
[421190219,1777225870394,-1061.35600253,0.000349,120]
[421190220,1777225870403,-171.99254843,0.000349,120]
[421190221,1777225870414,-841.34726371,0.000349,120]
[421190222,1777225870425,-706.94505282,0.000349,120]
[421190223,1777225870436,-575.47289118,0.000349,120]
[421190224,1777225870445,-809.22864547,0.000349,120]
[421190225,1777225870457,-1940.81596288,0.000349,120]
[421190226,1777225870468,-1763.80637438,0.000349,120]
[421190227,1777225870480,-1390.44371991,0.000349,120]
[421190228,1777225870491,-12416.54962031,0.000349,2]
[421190229,1777225870500,-1600.0,0.000349,12]
[421190230,1777225870509,-300.0,0.00034932,2]
[421190231,1777225870519,-300.0,0.00034932,2]
[421190232,1777225870529,-300.0,0.00034932,2]
[421190233,1777225870538,-300.0,0.00034932,2]
[421190234,1777225870548,-300.0,0.00034932,2]
[421190235,1777225870557,-300.0,0.00034932,2]
[421190236,1777225870567,-300.0,0.00034932,2]
[421190237,1777225870576,-300.0,0.00034932,2]
[421190238,1777225870585,-300.0,0.00034932,2]
[421190239,1777225870594,-300.0,0.00034932,2]
[421190240,1777225870604,-300.0,0.00034932,2]
[421190241,1777225870613,-300.0,0.00034959,2]
[421190242,1777225870623,-300.0,0.00034959,2]
[421190243,1777225870632,-300.0,0.00034959,2]
[421190244,1777225870642,-300.0,0.00034959,2]
[421190245,1777225870651,-300.0,0.00034959,2]
[421190246,1777225870661,-300.0,0.00034959,2]
[421190247,1777225870670,-300.0,0.00034959,2]
[421190248,1777225870680,-300.0,0.00034959,2]
[421190249,1777225870689,-300.0,0.00034959,2]
[421190250,1777225870698,-300.0,0.00034959,2]
[421190251,1777225870707,-300.0,0.00034959,2]
[421190252,1777225870717,-300.0,0.00034959,2]
[421190253,1777225870727,-300.0,0.00034959,2]
[421190254,1777225870736,-300.0,0.00034959,2]
[421190255,1777225870746,-300.0,0.00034959,2]
[421190256,1777225870755,-300.0,0.00034959,2]
[421190257,1777225870764,-300.0,0.00034959,2]
[421190258,1777225870773,-300.0,0.00034959,2]
[421190259,1777225870782,-300.0,0.00034959,2]
[421190260,1777225870792,-300.0,0.00034959,2]
[421190261,1777225870801,-300.0,0.00034959,2]
[421190262,1777225870810,-300.0,0.00034959,2]
[421190263,1777225870819,-150.349627,0.00034963,2]
[421190264,1777225870829,-504.0,0.00034974,7]
[421190265,1777225870838,-300.0,0.00034986,2]
[421190266,1777225870848,-300.0,0.00034986,2]
[421190267,1777225870857,-300.0,0.00034986,2]
[421190268,1777225870866,-300.0,0.00034986,2]
[421190269,1777225870876,-300.0,0.00034986,2]
[421190270,1777225870885,-300.0,0.00034986,2]
[421190271,1777225870895,-300.0,0.00034986,2]
[421190272,1777225870904,-300.0,0.00034986,2]
[421190273,1777225870914,-300.0,0.00034986,2]
[421190274,1777225870923,-300.0,0.00034986,2]
[421190275,1777225870932,-300.0,0.00034986,2]
[421190276,1777225870942,-1217.90324046,0.0003499,2]
[421190277,1777225870951,-500.0,0.00034999,15]
[421190278,1777225870961,-500.0,0.00034999,15]
[421190279,1777225870970,-500.0,0.00034999,15]
[421190280,1777225870980,-500.0,0.00034999,15]
[421190281,1777225870989,-500.0,0.00034999,15]
[421190282,1777225870999,-467.9996514,0.00034999,15]
[421190283,1777225871009,-626.08,0.00034999,15]
[421190284,1777225871018,-626.08,0.00034999,15]
[421190285,1777225871028,-626.08,0.00034999,15]
[421190286,1777225871038,-626.08,0.00034999,15]
[421190287,1777225871048,-626.08,0.00034999,15]
[421190288,1777225871057,-626.08,0.00034999,15]
[421190289,1777225871067,-626.08,0.00034999,15]
[421190290,1777225871076,-626.08,0.00034999,15]
[421190291,1777225871085,-626.08,0.00034999,15]
[421190292,1777225871096,-626.09,0.00034999,15]
[421190293,1777225871105,-500.0,0.00034999,7]
[421190294,1777225871114,-500.0,0.00034999,7]
[421190295,1777225871123,-500.0,0.00034999,7]
[421190296,1777225871134,-500.0,0.00034999,7]
[421190297,1777225871143,-500.0,0.00034999,7]
[421190298,1777225871152,-500.0,0.00034999,7]
[421190299,1777225871162,-500.0,0.00034999,7]
[421190300,1777225871171,-500.0,0.00034999,7]
[421190301,1777225871181,-532.63,0.00034999,7]
[421190302,1777225871191,-1476.72,0.00034999,15]
[421190303,1777225871200,-1476.72,0.00034999,15]
[421190304,1777225871210,-1476.72,0.00034999,15]
[421190305,1777225871219,-1476.72,0.00034999,15]
[421190306,1777225871229,-1476.72,0.00034999,15]
[421190307,1777225871239,-1476.72,0.00034999,15]
[421190308,1777225871248,-1476.72,0.00034999,15]
[421190309,1777225871258,-1476.72,0.00034999,15]
[421190310,1777225871268,-1476.72,0.00034999,15]
[421190311,1777225871277,-1476.80786136,0.00034999,15]
[421190312,1777225871287,-776.82,0.00034999,15]
[421190313,1777225871664,-776.82,0.00034999,15]
[421190314,1777225871674,-776.82,0.00034999,15]
[421190315,1777225871683,-776.82,0.00034999,15]
[421190316,1777225871692,-776.82,0.00034999,15]
[421190317,1777225871702,-776.82,0.00034999,15]
[421190318,1777225871711,-776.82,0.00034999,15]
[421190319,1777225871721,-776.82,0.00034999,15]
[421190320,1777225871730,-776.82,0.00034999,15]
[421190321,1777225871740,-776.96610396,0.00034999,15]
[421190322,1777225871750,-500.0,0.00034999,2]
[421190323,1777225871759,-500.0,0.00034999,2]
[421190324,1777225871768,-500.0,0.00034999,2]
[421190325,1777225871778,-510.09692377,0.00034999,2]
[421190326,1777225871787,-648.72,0.00034999,15]
[421190327,1777225871797,-648.72,0.00034999,15]
[421190328,1777225871806,-648.72,0.00034999,15]
[421190329,1777225871816,-648.72,0.00034999,15]
[421190330,1777225871826,-648.72,0.00034999,15]
[421190331,1777225871836,-648.72,0.00034999,15]
[421190332,1777225871847,-648.72,0.00034999,15]
[421190333,1777225871857,-648.72,0.00034999,15]
[421190334,1777225871866,-648.72,0.00034999,15]
[421190335,1777225871876,-648.84407653,0.00034999,15]
[421190336,1777225871885,-2026.4,0.00034999,15]
[421190337,1777225871895,-2026.4,0.00034999,15]
[421190338,1777225871904,-2026.4,0.00034999,15]
[421190339,1777225871914,-2026.4,0.00034999,15]
[421190340,1777225871923,-2026.45345526,0.00034999,15]
[421190341,1777225871932,-535.54,0.00034999,7]
[421190342,1777225871942,-535.54,0.00034999,7]
[421190343,1777225871951,-535.54,0.00034999,7]
[421190344,1777225871960,-535.54,0.00034999,7]
[421190345,1777225871970,-535.54,0.00034999,7]
[421190346,1777225871979,-535.54,0.00034999,7]
[421190347,1777225871989,-535.54,0.00034999,7]
[421190348,1777225871999,-535.54,0.00034999,7]
[421190349,1777225872008,-535.54,0.00034999,7]
[421190350,1777225872018,-535.61,0.00034999,7]
[421190351,1777225872027,-587.8,0.00034999,15]
[421190352,1777225872037,-587.8,0.00034999,15]
[421190353,1777225872047,-587.8,0.00034999,15]
[421190354,1777225872058,-587.8,0.00034999,15]
[421190355,1777225872067,-587.8,0.00034999,15]
[421190356,1777225872077,-587.8,0.00034999,15]
[421190357,1777225872087,-587.8,0.00034999,15]
[421190358,1777225872096,-587.8,0.00034999,15]
[421190359,1777225872106,-587.8,0.00034999,15]
[421190360,1777225872116,-587.85804312,0.00034999,15]
[421190361,1777225872129,-500.0,0.00034999,120]
[421190362,1777225872139,-2000.0,0.00034999,120]
[421190363,1777225872149,-426.445511,0.00034999,120]
[421190364,1777225872159,-500.0,0.00034999,120]
[421190365,1777225872169,-847.22,0.00034999,15]
[421190366,1777225872179,-847.22,0.00034999,15]
[421190367,1777225872188,-847.22,0.00034999,15]
[421190368,1777225872198,-847.22,0.00034999,15]
[421190369,1777225872207,-847.22,0.00034999,15]
[421190370,1777225872217,-847.22,0.00034999,15]
[421190371,1777225872226,-847.22,0.00034999,15]
[421190372,1777225872235,-847.22,0.00034999,15]
[421190373,1777225872244,-847.22,0.00034999,15]
[421190374,1777225872254,-847.39098942,0.00034999,15]
[421190375,1777225872263,-1249.43,0.00034999,15]
[421190376,1777225872273,-1249.43,0.00034999,15]
[421190377,1777225872283,-1249.43,0.00034999,15]
[421190378,1777225872292,-1249.43,0.00034999,15]
[421190379,1777225872301,-1249.43,0.00034999,15]
[421190380,1777225872311,-1249.43,0.00034999,15]
[421190381,1777225872320,-1249.43,0.00034999,15]
[421190382,1777225872330,-1249.43,0.00034999,15]
[421190383,1777225872339,-1249.43,0.00034999,15]
[421190384,1777225872348,-1249.558324,0.00034999,15]
[421190385,1777225872360,-773.2,0.00034999,7]
[421190386,1777225872369,-773.2,0.00034999,7]
[421190387,1777225872379,-773.2,0.00034999,7]
[421190388,1777225872388,-773.2,0.00034999,7]
[421190389,1777225872398,-773.2,0.00034999,7]
[421190390,1777225872409,-773.2,0.00034999,7]
[421190391,1777225872419,-773.2,0.00034999,7]
[421190392,1777225872429,-773.2,0.00034999,7]
[421190393,1777225872439,-773.2,0.00034999,7]
[421190394,1777225872448,-773.25529388,0.00034999,7]
[421190395,1777225872458,-500.0,0.00034999,15]
[421190396,1777225872468,-296.88505042,0.00034999,15]
[421190397,1777225872478,-624.43,0.00034999,15]
[421190398,1777225872488,-624.43,0.00034999,15]
[421190399,1777225872498,-624.43,0.00034999,15]
[421190400,1777225872508,-624.43,0.00034999,15]
[421190401,1777225872518,-624.43,0.00034999,15]
[421190402,1777225872529,-624.43,0.00034999,15]
[421190403,1777225872538,-624.43,0.00034999,15]
[421190404,1777225872548,-624.43,0.00034999,15]
[421190405,1777225872558,-624.43,0.00034999,15]
[421190406,1777225872568,-624.59316152,0.00034999,15]
[421190407,1777225872578,-1199.20597015,0.00034999,30]
[421190408,1777225872590,-150.0,0.00035,2]
[421190409,1777225872600,-150.0,0.00035,2]
[421190410,1777225872610,-150.0,0.00035,2]
[421190411,1777225872619,-150.0,0.00035,2]
[421190412,1777225872629,-150.0,0.00035,2]
[421190413,1777225872639,-150.0,0.00035,2]
[421190414,1777225872649,-166.29038998,0.00035,2]
[421190415,1777225872659,-244.65,0.00035,2]
[421190416,1777225872669,-1940.96156055,0.00035,2]
[421190417,1777225872679,-200.0,0.00035,120]
[421190418,1777225872688,-1009.0,0.00035,120]
[421190419,1777225872697,-150.0,0.00035,2]
[421190420,1777225872707,-179.485,0.00035,2]
[421190421,1777225872716,-200.81384893,0.00035,120]
[421190422,1777225872726,-42333.07087761,0.00035,120]
[421190423,1777225872735,-19575.47019049,0.00035,30]
[421190424,1777225872747,-340000.0,0.00035,4]
[421190425,1777225872757,-44466.17,0.00035,15]
[421190426,1777225872767,-648.1249428,0.00035,14]
[421190427,1777225872776,-2176.39023779,0.00035,7]
[421190428,1777225872786,-506.67,0.00035,7]
[421190429,1777225872795,-7979.42,0.00035,14]
[421190430,1777225872806,-960284.35641263,0.00035,30]
[421190431,1777225872816,-539715.64358737,0.00035,30]
[421190432,1777225872825,-411.43374201,0.00035,120]
[421190433,1777225872835,-3531.0,0.00035001,2]
[421190434,1777225872844,-1350.0,0.00035001,2]
[421190435,1777225872853,-1048.0,0.00035001,2]
[421190436,1777225872863,-1266.0,0.00035001,2]
[421190437,1777225872872,-927.0,0.00035001,2]
[421190438,1777225872882,-2475.0,0.00035001,2]
[421190439,1777225872891,-411.43374201,0.00035032,120]
[421190440,1777225872901,-152.0,0.00035059,11]
[421190441,1777225872910,-411.43374201,0.00035095,120]
[421190442,1777225872920,-2000.0,0.000351,120]
[421190443,1777225872930,-396.0,0.00035178,30]
[421190444,1777225872940,-411.43374201,0.00035189,120]
[421190445,1777225872949,-4072.5,0.0003521,7]
[421190446,1777225872959,-155.0,0.00035262,2]
[421190447,1777225872968,-411.43374201,0.00035284,120]
[421190448,1777225872978,-2500.0,0.000353,14]
[421190449,1777225872988,-316.72,0.000353,14]
[421190450,1777225872998,-500.0,0.00035351,21]
[421190451,1777225873008,-411.43374201,0.00035378,120]
[421190452,1777225873018,-161.0,0.0003538,120]
[421190453,1777225873028,-557.19,0.000354,114]
[421190454,1777225873038,-4115.44133802,0.00035418,120]
[421190455,1777225873047,-411.43374201,0.00035473,120]
[421190456,1777225873057,-408.0,0.00035493,30]
[421190457,1777225873066,-580.0,0.00035493,30]
[421190458,1777225873076,-613.0,0.00035493,30]
[421190459,1777225873085,-200.0,0.00035493,30]
[421190460,1777225873095,-202.0,0.00035494,30]
[421190461,1777225873105,-836.0,0.00035494,30]
[421190462,1777225873114,-309.0,0.00035494,30]
[421190463,1777225873123,-294.0,0.00035494,30]
[421190464,1777225873133,-351.0,0.00035494,30]
[421190465,1777225873143,-292.5,0.00035507,2]
[421190466,1777225873152,-150.0,0.00035522,2]
[421190467,1777225873162,-570.0,0.00035531,30]
[421190468,1777225873172,-411.43374201,0.00035567,120]
[421190469,1777225873182,-256.01693133,0.00035616,120]
[421190470,1777225873192,-1000.0,0.00035616,120]
[421190471,1777225873202,-300.0,0.00035616,5]
[421190472,1777225873212,-609.325472,0.00035616,7]
[421190473,1777225873221,-609.325472,0.00035616,7]
[421190474,1777225873230,-609.325472,0.00035616,7]
[421190476,1777225873240,-609.325472,0.00035616,7]
[421190477,1777225873250,-609.325472,0.00035616,7]
[421190478,1777225873259,-609.325472,0.00035616,7]
[421190479,1777225873269,-609.325472,0.00035616,7]
[421190480,1777225873278,-609.325472,0.00035616,7]
[421190481,1777225873288,-609.325472,0.00035616,7]
[421190482,1777225873298,-609.325472,0.00035616,7]
[421190483,1777225873306,-609.325472,0.00035616,7]
[421190484,1777225873316,-609.325472,0.00035616,7]
[421190485,1777225873326,-609.325472,0.00035616,7]
[421190486,1777225873336,-609.325472,0.00035616,7]
[421190487,1777225873346,-609.325472,0.00035616,7]
[421190488,1777225873356,-609.325472,0.00035616,7]
[421190489,1777225873366,-609.325472,0.00035616,7]
[421190490,1777225873375,-609.325472,0.00035616,7]
[421190491,1777225873385,-609.325472,0.00035616,7]
[421190493,1777225873394,-609.325475,0.00035616,7]